fUSD/lending_fUSD_20250314
["ID","MTS","AMOUNT","RATE_DAILY","PERIOD"]
[356163295,1741978976565,-500.0,0.00029187,120]
[356163296,1741978976601,-500.0,0.00029187,120]
[356163297,1741978976638,-626.53,0.00029187,120]
[356163298,1741978976675,-1771.82,0.00029187,120]
[356163299,1741978976711,-500.0,0.00029187,120]
[356163300,1741978976746,-987.69,0.00029187,120]
[356163301,1741978976781,-223.797747,0.00029187,120]
[356163302,1741978976816,-500.0,0.00029187,120]
[356163303,1741978976851,-500.0,0.00029187,120]
[356163304,1741978976886,-626.53,0.00029187,120]
[356163305,1741978976922,-987.69,0.00029187,120]
[356163306,1741978976960,-554.9,0.00029187,120]
[356163307,1741978977000,-1771.96526354,0.00029187,120]
[356163308,1741978977039,-987.69,0.00029187,120]
[356163309,1741978977077,-500.0,0.00029187,120]
[356163310,1741978977112,-626.53,0.00029187,120]
[356163311,1741978977147,-554.9,0.00029187,120]
[356163312,1741978977182,-500.0,0.00029187,120]
[356163313,1741978977217,-500.0,0.00029187,120]
[356163314,1741978977253,-500.0,0.00029187,120]
[356163315,1741978977288,-729.22,0.00029187,120]
[356163316,1741978977323,-626.53,0.00029187,120]
[356163317,1741978977360,-987.69,0.00029187,120]
[356163318,1741978977393,-500.0,0.00029187,120]
[356163319,1741978977427,-501.71470962,0.00029187,120]
[356163320,1741978977461,-554.9,0.00029187,120]
[356163321,1741978977495,-500.0,0.00029187,120]
[356163322,1741978977529,-729.22,0.00029187,120]
[356163323,1741978977563,-987.69,0.00029187,120]
[356163324,1741978977596,-500.0,0.00029187,120]
[356163325,1741978977631,-626.53,0.00029187,120]
[356163326,1741978977666,-500.0,0.00029187,120]
[356163327,1741978977699,-500.0,0.00029187,120]
[356163328,1741978977733,-554.9,0.00029187,120]
[356163329,1741978977767,-500.0,0.00029187,120]
[356163330,1741978977802,-500.0,0.00029187,120]
[356163331,1741978977837,-626.53,0.00029187,120]
[356163332,1741978977872,-987.69,0.00029187,120]
[356163333,1741978977908,-729.22,0.00029187,120]
[356163334,1741978977946,-618.62170356,0.00029187,120]
[356163335,1741978978019,-500.0,0.00029187,120]
[356163336,1741978978087,-554.9,0.00029187,120]
[356163337,1741978978160,-626.53,0.00029187,120]
[356163338,1741978978230,-729.22,0.00029187,120]
[356163339,1741978978291,-500.0,0.00029187,120]
[356163340,1741978978344,-987.69,0.00029187,120]
[356163341,1741978978397,-500.0,0.00029187,120]
[356163342,1741978978451,-554.9,0.00029187,120]
[356163343,1741978978504,-626.53,0.00029187,120]
[356163344,1741978978557,-500.0,0.00029187,120]
[356163345,1741978978608,-729.22,0.00029187,120]
[356163346,1741978978657,-500.0,0.00029187,120]
[356163347,1741978978709,-987.69,0.00029187,120]
[356163348,1741978978758,-500.0,0.00029187,120]
[356163349,1741978978808,-554.9,0.00029187,120]
[356163350,1741978978856,-500.0,0.00029187,120]
[356163351,1741978978903,-729.22,0.00029187,120]
[356163352,1741978978951,-500.0,0.00029187,120]
[356163353,1741978979004,-626.53,0.00029187,120]
[356163354,1741978979056,-987.69,0.00029187,120]
[356163355,1741978979106,-500.0,0.00029187,120]
[356163356,1741978979156,-554.9,0.00029187,120]
[356163357,1741978979206,-630.66636943,0.00029187,120]
[356163358,1741978979256,-626.53,0.00029187,120]
[356163359,1741978979305,-987.69,0.00029187,120]
[356163360,1741978979356,-500.0,0.00029187,120]
[356163361,1741978979405,-729.22,0.00029187,120]
[356163362,1741978979457,-554.9,0.00029187,120]
[356163363,1741978979509,-500.0,0.00029187,120]
[356163364,1741978979561,-500.0,0.00029187,120]
[356163365,1741978979610,-987.69,0.00029187,120]
[356163366,1741978979662,-626.53,0.00029187,120]
[356163367,1741978979711,-729.22,0.00029187,120]
[356163368,1741978979759,-554.9,0.00029187,120]
[356163369,1741978979807,-500.0,0.00029187,120]
[356163370,1741978979856,-729.22,0.00029187,120]
[356163371,1741978979904,-987.69,0.00029187,120]
[356163372,1741978979954,-554.9,0.00029187,120]
[356163373,1741978980006,-500.0,0.00029187,120]
[356163374,1741978980057,-626.66846239,0.00029187,120]
[356163375,1741978980108,-500.0,0.00029187,120]
[356163376,1741978980160,-500.0,0.00029187,120]
[356163377,1741978980209,-500.0,0.00029187,120]
[356163378,1741978980263,-729.22,0.00029187,120]
[356163379,1741978980310,-500.0,0.00029187,120]
[356163380,1741978980365,-987.69,0.00029187,120]
[356163381,1741978980411,-500.0,0.00029187,120]
[356163382,1741978980458,-500.0,0.00029187,120]
[356163383,1741978980503,-500.0,0.00029187,120]
[356163384,1741978980549,-554.9,0.00029187,120]
[356163385,1741978980595,-500.0,0.00029187,120]
[356163386,1741978980649,-500.0,0.00029187,120]
[356163387,1741978980706,-729.22,0.00029187,120]
[356163388,1741978980760,-987.69,0.00029187,120]
[356163389,1741978980815,-554.9,0.00029187,120]
[356163390,1741978980870,-500.0,0.00029187,120]
[356163391,1741978980928,-500.0,0.00029187,120]
[356163392,1741978980986,-500.0,0.00029187,120]
[356163393,1741978981040,-729.22,0.00029187,120]
[356163394,1741978981080,-500.0,0.00029187,120]
[356163395,1741978981122,-500.0,0.00029187,120]
[356163396,1741978981163,-500.0,0.00029187,120]
[356163397,1741978981203,-500.0,0.00029187,120]
[356163398,1741978981243,-500.0,0.00029187,120]
[356163399,1741978981530,-500.0,0.00029187,120]
[356163400,1741978981573,-554.9,0.00029187,120]
[356163401,1741978981615,-987.69,0.00029187,120]
[356163402,1741978981657,-729.22,0.00029187,120]
[356163403,1741978981699,-500.0,0.00029187,120]
[356163404,1741978981739,-500.0,0.00029187,120]
[356163405,1741978981779,-500.0,0.00029187,120]
[356163406,1741978981820,-729.22,0.00029187,120]
[356163407,1741978981862,-554.9,0.00029187,120]
[356163408,1741978981902,-313.34647506,0.00029187,120]
[356163409,1741978981944,-500.0,0.00029187,120]
[356163410,1741978981987,-500.0,0.00029187,120]
[356163411,1741978982031,-554.9,0.00029187,120]
[356163412,1741978982071,-500.0,0.00029187,120]
[356163413,1741978982111,-554.9,0.00029187,120]
[356163414,1741978982150,-500.0,0.00029187,120]
[356163415,1741978982190,-2344.15,0.00029187,120]
[356163416,1741978982229,-500.0,0.00029187,120]
[356163417,1741978982270,-1277.38,0.00029187,120]
[356163418,1741978982308,-551.7077574,0.00029187,120]
[356163419,1741978982345,-987.69,0.00029187,120]
[356163420,1741978982383,-2344.15,0.00029187,120]
[356163421,1741978982421,-500.0,0.00029187,120]
[356163422,1741978982457,-500.13388511,0.00029187,120]
[356163423,1741978982495,-729.22,0.00029187,120]
[356163424,1741978982531,-500.0,0.00029187,120]
[356163425,1741978982566,-1277.38,0.00029187,120]
[356163426,1741978982600,-500.0,0.00029187,120]
[356163427,1741978982637,-504.36827987,0.00029187,120]
[356163428,1741978982672,-2344.15,0.00029187,120]
[356163429,1741978982708,-987.69,0.00029187,120]
[356163430,1741978982744,-500.0,0.00029187,120]
[356163431,1741978982780,-500.0,0.00029187,120]
[356163432,1741978982816,-500.0,0.00029187,120]
[356163433,1741978982851,-554.9,0.00029187,120]
[356163434,1741978982887,-729.22,0.00029187,120]
[356163435,1741978982923,-500.0,0.00029187,120]
[356163436,1741978982959,-2344.15,0.00029187,120]
[356163437,1741978982995,-1277.38,0.00029187,120]
[356163438,1741978983033,-987.7070152,0.00029187,120]
[356163439,1741978983070,-500.0,0.00029187,120]
[356163440,1741978983108,-500.0,0.00029187,120]
[356163441,1741978983146,-554.9,0.00029187,120]
[356163442,1741978983183,-500.0,0.00029187,120]
[356163443,1741978983221,-729.22,0.00029187,120]
[356163444,1741978983261,-500.0,0.00029187,120]
[356163445,1741978983299,-500.0,0.00029187,120]
[356163446,1741978983336,-500.0,0.00029187,120]
[356163447,1741978983376,-1277.38,0.00029187,120]
[356163448,1741978983413,-452.85181631,0.00029187,120]
[356163449,1741978983452,-500.0,0.00029187,120]
[356163450,1741978983490,-554.9,0.00029187,120]
[356163451,1741978983529,-2344.15,0.00029187,120]
[356163452,1741978983569,-729.22,0.00029187,120]
[356163453,1741978983610,-1277.38,0.00029187,120]
[356163454,1741978983652,-500.0,0.00029187,120]
[356163455,1741978983694,-500.0,0.00029187,120]
[356163456,1741978983735,-729.22,0.00029187,120]
[356163457,1741978983778,-1277.38,0.00029187,120]
[356163458,1741978983818,-301.41812555,0.00029187,120]
[356163459,1741978983858,-554.9,0.00029187,120]
[356163460,1741978983899,-2344.15,0.00029187,120]
[356163461,1741978983940,-500.0,0.00029187,120]
[356163462,1741978983981,-500.0,0.00029187,120]
[356163463,1741978984026,-729.35123242,0.00029187,120]
[356163464,1741978984067,-2344.15,0.00029187,120]
[356163465,1741978984106,-500.0,0.00029187,120]
[356163466,1741978984145,-554.9,0.00029187,120]
[356163467,1741978984185,-1277.38,0.00029187,120]
[356163468,1741978984225,-2344.15,0.00029187,120]
[356163469,1741978984264,-500.0,0.00029187,120]
[356163470,1741978984305,-1277.38,0.00029187,120]
[356163471,1741978984342,-554.9,0.00029187,120]
[356163472,1741978984378,-500.0,0.00029187,120]
[356163473,1741978984415,-500.0,0.00029187,120]
[356163474,1741978984451,-2344.15,0.00029187,120]
[356163475,1741978984486,-555.07636916,0.00029187,120]
[356163476,1741978984523,-1277.38,0.00029187,120]
[356163477,1741978984557,-500.0,0.00029187,120]
[356163478,1741978984594,-500.0,0.00029187,120]
[356163479,1741978984633,-2344.15,0.00029187,120]
[356163480,1741978984670,-620.92965118,0.00029187,120]
[356163481,1741978984707,-2344.15,0.00029187,120]
[356163482,1741978984743,-500.0,0.00029187,120]
[356163483,1741978984780,-1277.38,0.00029187,120]
[356163484,1741978984817,-500.0,0.00029187,120]
[356163485,1741978984856,-2344.15,0.00029187,120]
[356163486,1741978984895,-500.0,0.00029187,120]
[356163487,1741978984933,-2344.15,0.00029187,120]
[356163488,1741978984973,-500.0,0.00029187,120]
[356163489,1741978985014,-542.30174522,0.00029187,120]
[356163490,1741978985053,-2344.15,0.00029187,120]
[356163491,1741978985091,-563.16,0.00029187,120]
[356163492,1741978985128,-1277.38,0.00029187,120]
[356163493,1741978985164,-2344.15,0.00029187,120]
[356163494,1741978985201,-549.37556415,0.00029187,120]
[356163495,1741978985238,-500.0,0.00029187,120]
[356163496,1741978985278,-1277.38,0.00029187,120]
[356163497,1741978985315,-563.16,0.00029187,120]
[356163498,1741978985351,-2344.15,0.00029187,120]
[356163499,1741978985595,-746.99,0.00029187,120]
[356163500,1741978985639,-1277.38,0.00029187,120]
[356163501,1741978985678,-563.16,0.00029187,120]
[356163502,1741978985716,-500.0,0.00029187,120]
[356163503,1741978985754,-2344.15,0.00029187,120]
[356163504,1741978985791,-500.0,0.00029187,120]
[356163505,1741978985828,-814.42,0.00029187,120]
[356163506,1741978985866,-500.0,0.00029187,120]
[356163507,1741978985908,-500.0,0.00029187,120]
[356163508,1741978985954,-563.16,0.00029187,120]
[356163509,1741978985997,-2344.15,0.00029187,120]
[356163510,1741978986040,-1277.38,0.00029187,120]
[356163511,1741978986084,-500.0,0.00029187,120]
[356163512,1741978986126,-814.42,0.00029187,120]
[356163513,1741978986168,-500.0,0.00029187,120]
[356163514,1741978986210,-746.99,0.00029187,120]
[356163515,1741978986252,-563.16,0.00029187,120]
[356163516,1741978986298,-500.0,0.00029187,120]
[356163517,1741978986338,-814.42,0.00029187,120]
[356163518,1741978986377,-2344.15,0.00029187,120]
[356163519,1741978986414,-500.0,0.00029187,120]
[356163520,1741978986451,-502.58584802,0.00029187,120]
[356163521,1741978986488,-1277.38,0.00029187,120]
[356163522,1741978986526,-563.16,0.00029187,120]
[356163523,1741978986561,-814.42,0.00029187,120]
[356163524,1741978986597,-500.0,0.00029187,120]
[356163525,1741978986634,-500.0,0.00029187,120]
[356163526,1741978986672,-746.99,0.00029187,120]
[356163527,1741978986710,-2344.15,0.00029187,120]
[356163528,1741978986747,-1277.38,0.00029187,120]
[356163529,1741978986783,-814.42,0.00029187,120]
[356163530,1741978986820,-500.0,0.00029187,120]
[356163531,1741978986856,-746.99,0.00029187,120]
[356163532,1741978986893,-563.16,0.00029187,120]
[356163533,1741978986930,-502.92129654,0.00029187,120]
[356163534,1741978986968,-2344.15,0.00029187,120]
[356163535,1741978987009,-1277.38,0.00029187,120]
[356163536,1741978987051,-814.42,0.00029187,120]
[356163537,1741978987092,-563.16,0.00029187,120]
[356163538,1741978987132,-746.99,0.00029187,120]
[356163539,1741978987172,-2344.15,0.00029187,120]
[356163540,1741978987213,-1277.38,0.00029187,120]
[356163541,1741978987254,-500.0,0.00029187,120]
[356163542,1741978987297,-2344.15,0.00029187,120]
[356163543,1741978987337,-814.42,0.00029187,120]
[356163544,1741978987377,-1277.38,0.00029187,120]
[356163545,1741978987415,-563.16,0.00029187,120]
[356163546,1741978987453,-814.42,0.00029187,120]
[356163547,1741978987491,-500.0,0.00029187,120]
[356163548,1741978987529,-746.99,0.00029187,120]
[356163549,1741978987567,-1277.38,0.00029187,120]
[356163550,1741978987604,-500.0,0.00029187,120]
[356163551,1741978987641,-2344.18768242,0.00029187,120]
[356163552,1741978987677,-563.16,0.00029187,120]
[356163553,1741978987713,-814.42,0.00029187,120]
[356163554,1741978987750,-500.0,0.00029187,120]
[356163555,1741978987788,-500.0,0.00029187,120]
[356163556,1741978987826,-1277.38,0.00029187,120]
[356163557,1741978987863,-746.99,0.00029187,120]
[356163558,1741978987900,-500.0,0.00029187,120]
[356163559,1741978987939,-563.16,0.00029187,120]
[356163560,1741978987979,-1277.38,0.00029187,120]
[356163561,1741978988019,-500.0,0.00029187,120]
[356163562,1741978988057,-500.0,0.00029187,120]
[356163563,1741978988094,-814.42,0.00029187,120]
[356163564,1741978988133,-433.40858321,0.00029187,120]
[356163565,1741978988172,-500.0,0.00029187,120]
[356163566,1741978988211,-1277.38,0.00029187,120]
[356163567,1741978988249,-647.41,0.00029187,120]
[356163568,1741978988288,-746.99,0.00029187,120]
[356163569,1741978988326,-500.0,0.00029187,120]
[356163570,1741978988361,-500.0,0.00029187,120]
[356163571,1741978988398,-563.16,0.00029187,120]
[356163572,1741978988434,-814.42,0.00029187,120]
[356163573,1741978988470,-500.0,0.00029187,120]
[356163574,1741978988507,-1277.58883127,0.00029187,120]
[356163575,1741978988542,-500.0,0.00029187,120]
[356163576,1741978988578,-500.0,0.00029187,120]
[356163577,1741978988614,-814.42,0.00029187,120]
[356163578,1741978988650,-500.0,0.00029187,120]
[356163579,1741978988686,-563.16,0.00029187,120]
[356163580,1741978988724,-500.0,0.00029187,120]
[356163581,1741978988758,-500.0,0.00029187,120]
[356163582,1741978988793,-746.99,0.00029187,120]
[356163583,1741978988827,-814.42,0.00029187,120]
[356163584,1741978988861,-500.0,0.00029187,120]
[356163585,1741978988896,-552.17551154,0.00029187,120]
[356163586,1741978993544,400.0,9.4e-05,3]
[356163587,1741978993580,800.0,9.5e-05,3]
[356163588,1741978993675,472.72995844,0.00040567,120]
[356163589,1741978994250,-1000.0,0.00043987,120]
[356163590,1741978994293,-1899.50555404,0.00043998,120]
[356163591,1741978994331,-1152.92627486,0.00043998,120]
[356163592,1741978994369,-283.2288194,0.00043998,120]
[356163593,1741978994407,-50000.0,0.00044,44]
[356163594,1741978994443,-500.0,0.00044,120]
[356163595,1741978994479,-528.68786507,0.00044,30]
[356163596,1741978994514,-1417.1025159,0.00044,30]
[356163597,1741978994550,-513.11373614,0.00044,30]
[356163598,1741978994586,-602.85026436,0.00044,30]
[356163599,1741978994622,-337.21660448,0.00044,60]
[356163600,1741978994658,-278.9886688,0.00044,120]
[356163601,1741978994695,-517.209283,0.00044,57]
[356163602,1741978994730,-329.0,0.00044,90]
[356163603,1741978994765,-329.0,0.0004411,90]
[356163604,1741978994800,-200.0,0.00044392,120]
[356163605,1741978994834,-220996.0,0.000444,30]
[356163606,1741978994868,-211668.58175392,0.000444,120]
[356163607,1741978994905,-285.75797032,0.000445,120]
[356163608,1741978994949,-30000.0,0.000445,120]
[356163609,1741978994991,-176.72705,0.000446,120]
[356163610,1741978995032,-517.0,0.000446,30]
[356163611,1741978995070,-5100.0,0.0004488,33]
[356163612,1741978995107,-5100.0,0.0004488,32]
[356163613,1741978995143,-5100.0,0.0004488,31]
[356163614,1741978995181,-50000.0,0.00045,45]
[356163615,1741978995217,-158.3,0.00045,85]
[356163616,1741978995252,-200.0,0.00045,120]
[356163617,1741978995290,-2180.19153238,0.00045,120]
[356163618,1741978995327,-2358.01419904,0.00045,60]
[356163619,1741978995362,-1526.53224611,0.00045,120]
[356163620,1741978995399,-151.0,0.00045,120]
[356163621,1741978995435,-151.0,0.00045,120]
[356163622,1741978995470,-1783.35777253,0.00045,120]
[356163623,1741978995505,-183.60505676,0.00045,120]
[356163624,1741978995541,-927.48813615,0.00045,120]
[356163625,1741978995575,-372.1,0.00045,120]
[356163626,1741978995612,-150.0,0.000452,120]
[356163627,1741978995648,-200.0,0.00045296,120]
[356163628,1741978995684,-999.72532436,0.00045321,30]
[356163629,1741978995720,-839.46899197,0.000455,120]
[356163630,1741978995756,-449.21414754,0.000457,120]
[356163631,1741978995796,-50000.0,0.00046,46]
[356163632,1741978995831,-1000.0,0.00046,30]
[356163633,1741978995866,-800.0,0.00046,120]
[356163634,1741978995902,-500.0,0.00046,120]
[356163635,1741978995938,-150.17794056,0.00046,120]
[356163636,1741978995975,-2033.10406009,0.00046,120]
[356163637,1741978996012,-329.0,0.00046027,90]
[356163638,1741978996049,-200.0,0.00046201,120]
[356163639,1741978996088,-176.72705,0.000463,120]
[356163640,1741978996130,-1000000.0,0.000465,120]
[356163641,1741978996170,-999.0,0.00046575,120]
[356163642,1741978996208,-150.0,0.000467,120]
[356163643,1741978996246,-150.0,0.000468,120]
[356163644,1741978996285,-999.0,0.00046904,120]
[356163645,1741978996325,-50000.0,0.00047,47]
[356163646,1741978996362,-200.0,0.00047105,120]
[356163647,1741978996398,-999.0,0.00047232,120]
[356163648,1741978996434,-217.36920465,0.000475,120]
[356163649,1741978996470,-485.70461832,0.000475,30]
[356163650,1741978996508,-1000000.0,0.000475,120]
[356163651,1741978996546,-999.0,0.00047561,120]
[356163652,1741978996582,-2000.0,0.000477,120]
[356163653,1741978996617,-2000.0,0.000477,120]
[356163654,1741978996653,-744.0,0.000477,120]
[356163655,1741978996689,-528.23,0.00047841,120]
[356163656,1741978996726,-311.56236062,0.0004788,100]
[356163657,1741978996763,-999.0,0.0004789,120]
[356163658,1741978997075,-252.47167959,0.000479,30]
[356163659,1741978997114,-2662.08755547,0.00047945,120]
[356163660,1741978997157,-50000.0,0.00048,48]
[356163661,1741978997196,-1000.0,0.00048,120]
[356163662,1741978997233,-173943.79452554,0.00048,120]
[356163663,1741978997271,-176.72705,0.00048,120]
[356163664,1741978997306,-2033.10406009,0.00048,120]
[356163665,1741978997342,-16571.39958113,0.00048,120]
[356163666,1741978997379,-200.0,0.0004801,120]
[356163667,1741978997416,-999.0,0.00048219,120]
[356163668,1741978997453,-206.94677,0.000483,120]
[356163669,1741978997490,-434.04931517,0.000483,120]
[356163670,1741978997526,-1335.73429073,0.00048309,120]
[356163671,1741978997563,-335.0,0.00048329,90]
[356163672,1741978997599,-150.0,0.000484,120]
[356163673,1741978997637,-155.97047973,0.00048439,120]
[356163674,1741978997675,-1000000.0,0.000485,120]
[356163675,1741978997713,-577.797126,0.000486,120]
[356163676,1741978997753,-263.89354,0.000486,120]
[356163677,1741978997792,-238.0,0.000486,120]
[356163678,1741978997832,-1184.54003747,0.000488,120]
[356163679,1741978997872,-6933.77885595,0.000488,120]
[356163680,1741978997911,-817.56954046,0.000488,120]
[356163681,1741978997949,-249.16736399,0.0004888,120]
[356163682,1741978997988,-1167.40444871,0.000489,120]
[356163683,1741978998028,-200.0,0.00048914,120]
[356163684,1741978998069,-1000.0,0.00048999,120]
[356163685,1741978998113,-50000.0,0.00049,49]
[356163686,1741978998153,-751.54673749,0.00049,30]
[356163687,1741978998193,-258.53120796,0.00049,120]
[356163688,1741978998233,-10000.0,0.00049,120]
[356163689,1741978998272,-700.0,0.00049,120]
[356163690,1741978998311,-1200.0,0.00049,120]
[356163691,1741978998351,-1456.0,0.00049,120]
[356163692,1741978998389,-617.9267715,0.00049,120]
[356163693,1741978998427,-5000.0,0.00049,120]
[356163694,1741978998464,-3309.89669002,0.00049,30]
[356163695,1741978998502,-279.83459131,0.00049,60]
[356163696,1741978998539,-239.67106311,0.00049315,120]
[356163697,1741978998578,-500.0,0.00049315,120]
[356163698,1741978998615,-500.0,0.00049315,120]
[356163699,1741978998653,-219.41863273,0.00049315,120]
[356163700,1741978998690,-730.25,0.00049315,30]
[356163701,1741978998895,375.21735594,0.00037751,30]
[356163702,1741978998943,375.21735594,0.00038057,30]
[356163703,1741978998995,375.21735594,0.00038352,30]
[356163704,1741978999043,375.21735594,0.00038483,30]
[356163705,1741978999094,375.21735594,0.00038888,30]
[356163706,1741978999247,375.21735594,0.00039007,30]
[356163707,1741978999300,375.21735594,0.00039318,30]
[356163708,1741978999350,375.21735594,0.00039494,30]
[356163709,1741978999394,375.21735594,0.00039826,30]
[356163710,1741978999442,375.21735594,0.00040179,30]
[356163711,1741978999499,375.21735594,0.00040322,30]
[356163712,1741978999549,375.21735594,0.00040648,30]
[356163713,1741978999593,375.21735594,0.00041005,30]
[356163714,1741978999640,375.21735594,0.00041157,30]
[356163715,1741978999678,375.21735594,0.00041495,30]
[356163716,1741978999720,375.21735594,0.00041683,30]
[356163717,1741978999764,375.21735594,0.00042008,30]
[356163718,1741978999802,375.21735594,0.00042407,30]
[356163719,1741978999840,375.21735594,0.00042715,30]
[356163720,1741978999882,375.21735605,0.00042839,30]
[356163721,1741979000504,1293.72277254,0.000372,103]
[356163722,1741979000554,1293.72277251,0.000372,103]
[356163723,1741979000608,1293.72277251,0.000372,103]
[356163724,1741979000687,1293.72277251,0.000372,103]
[356163725,1741979000990,1293.72277251,0.000372,103]
[356163726,1741979001510,999.0,0.00046575,120]
[356163727,1741979001554,999.0,0.00046904,120]
[356163728,1741979001602,999.0,0.00047232,120]
[356163729,1741979001652,999.0,0.00047561,120]
[356163730,1741979001697,999.0,0.0004789,120]
[356163731,1741979001757,999.0,0.00048219,120]
[356163732,1741979001801,999.0,0.00048547,120]
[356163733,1741979001846,999.0,0.00048876,120]
[356163734,1741979001890,999.0,0.00049205,120]
[356163735,1741979002124,919750.75810299,0.00049315,30]
[356163736,1741979043195,-200.0,0.00041159,120]
[356163737,1741979043240,-200.0,0.00043699,120]
[356163738,1741979043285,-153.0,0.00045,90]
[356163739,1741979043327,-156.932855,0.00045199,120]
[356163740,1741979043371,-153.0,0.00047407,90]
[356163741,1741979043414,-14777.03,0.00048315,120]
[356163742,1741979043457,-5224.49556113,0.00048315,120]
[356163743,1741979043498,-441.08,0.00048815,120]
[356163744,1741979043539,-454.81,0.00048815,120]
[356163745,1741979043582,-164.0,0.00049,90]
[356163746,1741979043622,-150.0,0.00049315,30]
[356163747,1741979043663,-3456.03391,0.00049315,86]
[356163748,1741979043704,-3456.03392,0.00049315,86]
[356163749,1741979043744,-3456.03391,0.00049315,86]
[356163750,1741979043785,-3456.03392,0.00049315,86]
[356163751,1741979043824,-3456.03392,0.00049315,86]
[356163752,1741979043863,-3456.03391,0.00049315,86]
[356163753,1741979043900,-150.0,0.00049315,30]
[356163754,1741979043939,-150.0,0.00049315,30]
[356163755,1741979049829,150.0,0.00049315,30]
[356163756,1741979056668,388.67,0.000326,30]
[356163757,1741979057004,291.5,0.000418,120]
[356163758,1741979057265,500.0,0.00049315,120]
[356163759,1741979057475,500.0,0.00049315,120]
[356163760,1741979057521,433.921571,0.00048553,30]
[356163761,1741979057666,500.0,0.00049315,120]
[356163762,1741979057831,433.921571,0.00048982,30]
[356163763,1741979057881,500.0,0.00049315,120]
[356163764,1741979058060,500.0,0.00049315,120]
[356163765,1741979058169,433.921571,0.00049053,30]
[356163766,1741979058265,500.0,0.00049315,120]
[356163767,1741979058485,500.0,0.00049315,120]
[356163768,1741979058678,500.0,0.00049315,120]
[356163769,1741979058868,500.0,0.00049315,120]
[356163770,1741979059049,500.0,0.00049315,120]
[356163771,1741979059460,511.46154636,0.00049315,120]
[356163772,1741979061470,1459991.29944245,0.00049315,30]
[356163773,1741979061767,150.0,0.00049315,30]
[356163774,1741979089063,1160.24,9.479e-05,2]
[356163781,1741979215402,-550.0,9.617e-05,2]
[356163782,1741979215432,-150.0,9.617e-05,2]
[356163783,1741979215459,-1000.0,9.633e-05,2]
[356163784,1741979215485,-1638.056,9.8e-05,2]
[356163785,1741979215512,-3382.755,9.9e-05,2]
[356163786,1741979215536,-7419.7846,9.9e-05,2]
[356163787,1741979215561,-500.0,9.9e-05,2]
[356163788,1741979215586,-1854.2746,9.9e-05,2]
[356163789,1741979215611,-5866.4939,9.9e-05,2]
[356163790,1741979215636,-392.4968,9.9e-05,2]
[356163791,1741979215660,-2500.0,9.9e-05,2]
[356163792,1741979215684,-1141.48743805,9.999e-05,3]
[356163793,1741979215710,-1141.48743805,9.999e-05,3]
[356163794,1741979215739,-972463.1642239,0.0001,2]
[356163795,1741979252182,700.0,9.4e-05,3]
[356163796,1741979254283,1400.0,9.5e-05,3]
[356163797,1741979309639,118.44058819,9e-05,2]
[356163798,1741979309661,131.55941181,9e-05,2]
[356163803,1741979431812,-354.74,9.599e-05,2]
[356163804,1741979431822,-624.42,9.599e-05,2]